[Event "November 21 Early 2023"]
[Site "https://www.chess.com"]
[Date "2023.11.21"]
[Round "7"]
[White "Jamal-Jamal-Jamal"]
[Black "Cardozo Munar, Carlos Eduardo"]
[Result "1-0"]
[Board "161"]
[TimeControl "180+1"]
[BlackFideId "4409477"]
[WhiteElo "2460"]
[BlackElo "2067"]
[BlackTeam "COL"]
[WhiteClock "0:00:09"]
[BlackClock "0:00:58"]

1. d4 {[%clk 0:03:00]}  d5 {[%clk 0:02:59]} 2. c4 {[%clk 0:02:59]}  e5 {[%clk 0:02:59]} 3. dxe5 {[%clk 0:02:58]}  d4 {[%clk 0:03:00]} 4. Nf3 {[%clk 0:02:58]}  Nc6 {[%clk 0:03:00]} 5. a3 {[%clk 0:02:58]}  Nge7 {[%clk 0:03:00]} 6. e3 {[%clk 0:02:57]}  Bg4 {[%clk 0:02:59]} 7. Be2 {[%clk 0:02:54]}  dxe3 {[%clk 0:02:59]} 8. Bxe3 {[%clk 0:02:52]}  Qxd1+ {[%clk 0:02:59]} 9. Bxd1 {[%clk 0:02:53]}  Ng6 {[%clk 0:02:59]} 10. O-O {[%clk 0:02:52]}  Ngxe5 {[%clk 0:02:49]} 11. Nxe5 {[%clk 0:02:48]}  Nxe5 {[%clk 0:02:50]} 12. Bxg4 {[%clk 0:02:32]}  Nxg4 {[%clk 0:02:51]} 13. Bf4 {[%clk 0:02:32]}  O-O-O {[%clk 0:02:50]} 14. Nc3 {[%clk 0:02:29]}  Bc5 {[%clk 0:02:50]} 15. h3 {[%clk 0:02:12]}  Nxf2 {[%clk 0:02:49]} 16. Rxf2 {[%clk 0:02:13]}  Bxf2+ {[%clk 0:02:48]} 17. Kxf2 {[%clk 0:02:12]}  Rd4 {[%clk 0:02:49]} 18. Be5 {[%clk 0:02:04]}  Rxc4 {[%clk 0:02:48]} 19. Bxg7 {[%clk 0:02:02]}  Rg8 {[%clk 0:02:48]} 20. Bh6 {[%clk 0:02:02]}  b5 {[%clk 0:02:33]} 21. Re1 {[%clk 0:02:01]}  b4 {[%clk 0:02:30]} 22. axb4 {[%clk 0:02:02]}  Rxb4 {[%clk 0:02:30]} 23. Re2 {[%clk 0:02:02]}  a5 {[%clk 0:02:30]} 24. Nd5 {[%clk 0:02:01]}  Rg6 {[%clk 0:01:58]} 25. Nxb4 {[%clk 0:01:51]}  axb4 {[%clk 0:01:57]} 26. Bd2 {[%clk 0:01:51]}  c5 {[%clk 0:01:57]} 27. Re5 {[%clk 0:01:47]}  Rc6 {[%clk 0:01:57]} 28. Re7 {[%clk 0:01:47]}  Rf6+ {[%clk 0:01:50]} 29. Ke2 {[%clk 0:01:47]}  Kd8 {[%clk 0:01:50]} 30. Ra7 {[%clk 0:01:45]}  Re6+ {[%clk 0:01:44]} 31. Kd3 {[%clk 0:01:42]}  Rd6+ {[%clk 0:01:41]} 32. Ke2 {[%clk 0:01:25]}  Re6+ {[%clk 0:01:41]} 33. Kf3 {[%clk 0:01:26]}  Rd6 {[%clk 0:01:36]} 34. Be3 {[%clk 0:01:18]}  c4 {[%clk 0:01:34]} 35. Rxf7 {[%clk 0:00:35]}  c3 {[%clk 0:01:30]} 36. bxc3 {[%clk 0:00:36]}  bxc3 {[%clk 0:01:30]} 37. Rxh7 {[%clk 0:00:30]}  c2 {[%clk 0:01:31]} 38. Rh4 {[%clk 0:00:21]}  Rc6 {[%clk 0:01:23]} 39. Bc1 {[%clk 0:00:22]}  Ke7 {[%clk 0:01:22]} 40. Rf4 {[%clk 0:00:21]}  Ke6 {[%clk 0:01:22]} 41. g4 {[%clk 0:00:21]}  Ke5 {[%clk 0:01:22]} 42. Rf5+ {[%clk 0:00:21]}  Kd4 {[%clk 0:01:22]} 43. h4 {[%clk 0:00:21]}  Kd3 {[%clk 0:01:22]} 44. h5 {[%clk 0:00:21]}  Re6 {[%clk 0:01:22]} 45. h6 {[%clk 0:00:19]}  Re1 {[%clk 0:01:20]} 46. Bg5 {[%clk 0:00:17]}  Rh1 {[%clk 0:01:10]} 47. Rd5+ {[%clk 0:00:16]}  Kc4 {[%clk 0:01:09]} 48. Rd7 {[%clk 0:00:16]}  Rd1 {[%clk 0:01:06]} 49. Rc7+ {[%clk 0:00:14]}  Kb3 {[%clk 0:01:05]} 50. h7 {[%clk 0:00:14]}  Rh1 {[%clk 0:01:05]} 51. Bf4 {[%clk 0:00:12]}  Rh3+ {[%clk 0:01:02]} 52. Ke4 {[%clk 0:00:12]}  Rh4 {[%clk 0:01:02]} 53. g5 {[%clk 0:00:11]}  Kb2 {[%clk 0:00:59]} 54. g6 {[%clk 0:00:11]}  Rg4 {[%clk 0:00:58]} 55. h8=Q+ {[%clk 0:00:10]}  Kb1 {[%clk 0:00:59]} 56. Rxc2 {[%clk 0:00:10]}  Kxc2 {[%clk 0:00:59]} 57. Qc8+ {[%clk 0:00:10]}  Kd1 {[%clk 0:00:58]} 58. Qxg4+ {[%clk 0:00:11]}  Kc2 {[%clk 0:00:58]} 59. Qg2+ {[%clk 0:00:11]}  Kb1 {[%clk 0:00:58]} 60. Kd3 {[%clk 0:00:09]}  Ka1 {[%clk 0:00:58]} 61. Kc3 {[%clk 0:00:09]}  Kb1 {[%clk 0:00:58]} 62. Qb2# {[%clk 0:00:09]} 1-0

[Event "November 21 Early 2023"]
[Site "https://www.chess.com"]
[Date "2023.11.21"]
[Round "7"]
[White "Witty_Alien"]
[Black "HeroWilczek"]
[Result "0-1"]
[Board "162"]
[TimeControl "180+1"]
[WhiteElo "2283"]
[BlackElo "2454"]
[WhiteClock "0:00:01"]
[BlackClock "0:00:32"]

1. e4 {[%clk 0:03:00]}  d5 {[%clk 0:02:59]} 2. exd5 {[%clk 0:03:00]}  Nf6 {[%clk 0:02:59]} 3. Bb5+ {[%clk 0:02:59]}  Nbd7 {[%clk 0:02:59]} 4. Nc3 {[%clk 0:02:57]}  g6 {[%clk 0:02:57]} 5. h4 {[%clk 0:02:56]}  a6 {[%clk 0:02:54]} 6. Ba4 {[%clk 0:02:43]}  Bg7 {[%clk 0:02:49]} 7. h5 {[%clk 0:02:43]}  Nxh5 {[%clk 0:02:45]} 8. Rxh5 {[%clk 0:02:43]}  gxh5 {[%clk 0:02:46]} 9. Qxh5 {[%clk 0:02:44]}  b5 {[%clk 0:02:44]} 10. Bb3 {[%clk 0:02:39]}  Nf6 {[%clk 0:02:43]} 11. Qg5 {[%clk 0:02:39]}  Bf8 {[%clk 0:02:29]} 12. Nf3 {[%clk 0:01:57]}  Rg8 {[%clk 0:02:28]} 13. Qe5 {[%clk 0:01:46]}  Qd6 {[%clk 0:02:24]} 14. d4 {[%clk 0:01:45]}  Ng4 {[%clk 0:01:47]} 15. Qh5 {[%clk 0:01:30]}  Nf6 {[%clk 0:01:48]} 16. Qe5 {[%clk 0:01:03]}  Bb7 {[%clk 0:01:48]} 17. Bf4 {[%clk 0:00:59]}  O-O-O {[%clk 0:01:35]} 18. Ng5 {[%clk 0:00:52]}  Qxe5+ {[%clk 0:01:29]} 19. dxe5 {[%clk 0:00:51]}  Nxd5 {[%clk 0:01:29]} 20. Nxf7 {[%clk 0:00:26]}  Nxc3 {[%clk 0:01:11]} 21. Nxd8 {[%clk 0:00:19]}  Rxg2 {[%clk 0:01:10]} 22. bxc3 {[%clk 0:00:03]}  Rg1+ {[%clk 0:01:10]} 23. Ke2 {[%clk 0:00:02]}  Rxa1 {[%clk 0:01:11]} 24. Ne6 {[%clk 0:00:02]}  h5 {[%clk 0:00:59]} 25. Nxf8 {[%clk 0:00:02]}  h4 {[%clk 0:00:59]} 26. Ng6 {[%clk 0:00:03]}  Rh1 {[%clk 0:00:54]} 27. Nxe7+ {[%clk 0:00:02]}  Kd7 {[%clk 0:00:50]} 28. Ng6 {[%clk 0:00:03]}  h3 {[%clk 0:00:49]} 29. e6+ {[%clk 0:00:02]}  Ke8 {[%clk 0:00:47]} 30. e7 {[%clk 0:00:02]}  h2 {[%clk 0:00:44]} 31. Be6 {[%clk 0:00:02]}  Re1+ {[%clk 0:00:42]} 32. Kxe1 {[%clk 0:00:02]}  h1=Q+ {[%clk 0:00:42]} 33. Kd2 {[%clk 0:00:03]}  Qe4 {[%clk 0:00:35]} 34. Bf7+ {[%clk 0:00:01]}  Kxf7 {[%clk 0:00:35]} 35. Ne5+ {[%clk 0:00:01]}  Kxe7 {[%clk 0:00:32]} 0-1

[Event "November 21 Early 2023"]
[Site "https://www.chess.com"]
[Date "2023.11.21"]
[Round "7"]
[White "ATM622"]
[Black "Minina, Veronika"]
[Result "1-0"]
[Board "163"]
[TimeControl "180+1"]
[BlackFideId "4174780"]
[WhiteElo "2432"]
[BlackElo "1905"]
[BlackTeam "RUS"]
[WhiteClock "0:01:35"]
[BlackClock "0:00:00"]

1. d4 {[%clk 0:02:57]}  Nf6 {[%clk 0:02:59]} 2. c4 {[%clk 0:02:56]}  g6 {[%clk 0:03:00]} 3. g3 {[%clk 0:02:56]}  Bg7 {[%clk 0:03:01]} 4. Bg2 {[%clk 0:02:57]}  d6 {[%clk 0:03:02]} 5. Nf3 {[%clk 0:02:57]}  O-O {[%clk 0:03:03]} 6. O-O {[%clk 0:02:58]}  c5 {[%clk 0:03:04]} 7. Nc3 {[%clk 0:02:58]}  cxd4 {[%clk 0:03:04]} 8. Nxd4 {[%clk 0:02:59]}  Nbd7 {[%clk 0:02:54]} 9. b3 {[%clk 0:02:57]}  Rb8 {[%clk 0:02:52]} 10. Bb2 {[%clk 0:02:57]}  Nc5 {[%clk 0:02:52]} 11. Rc1 {[%clk 0:02:55]}  a6 {[%clk 0:02:47]} 12. b4 {[%clk 0:02:54]}  Ne6 {[%clk 0:02:47]} 13. Nd5 {[%clk 0:02:51]}  Nxd5 {[%clk 0:02:42]} 14. cxd5 {[%clk 0:02:49]}  Nxd4 {[%clk 0:02:42]} 15. Bxd4 {[%clk 0:02:49]}  Bxd4 {[%clk 0:02:38]} 16. Qxd4 {[%clk 0:02:50]}  Bd7 {[%clk 0:02:33]} 17. Rc2 {[%clk 0:02:39]}  a5 {[%clk 0:02:33]} 18. Rfc1 {[%clk 0:02:36]}  axb4 {[%clk 0:02:33]} 19. Rc7 {[%clk 0:02:31]}  Rc8 {[%clk 0:02:20]} 20. Qb6 {[%clk 0:02:29]}  Bb5 {[%clk 0:02:00]} 21. Qxb7 {[%clk 0:02:22]}  Rxc7 {[%clk 0:01:54]} 22. Rxc7 {[%clk 0:02:16]}  Bxe2 {[%clk 0:01:38]} 23. Rxe7 {[%clk 0:02:11]}  Bd3 {[%clk 0:01:31]} 24. Re3 {[%clk 0:02:07]}  Bc4 {[%clk 0:01:25]} 25. Qxb4 {[%clk 0:02:06]}  Bxa2 {[%clk 0:01:26]} 26. Ra3 {[%clk 0:02:05]}  Qc7 {[%clk 0:00:38]} 27. Rxa2 {[%clk 0:02:04]}  Rb8 {[%clk 0:00:39]} 28. Qe1 {[%clk 0:02:02]}  Qc4 {[%clk 0:00:36]} 29. Rd2 {[%clk 0:01:58]}  Rb4 {[%clk 0:00:32]} 30. h4 {[%clk 0:01:55]}  Qb5 {[%clk 0:00:29]} 31. Kh2 {[%clk 0:01:52]}  h5 {[%clk 0:00:22]} 32. Re2 {[%clk 0:01:48]}  Kg7 {[%clk 0:00:22]} 33. Qc3+ {[%clk 0:01:45]}  Kh7 {[%clk 0:00:07]} 34. Re7 {[%clk 0:01:37]}  Kg8 {[%clk 0:00:00]} 35. Qf6 {[%clk 0:01:35]} 1-0

[Event "November 21 Early 2023"]
[Site "https://www.chess.com"]
[Date "2023.11.21"]
[Round "7"]
[White "Bashirli, Saadat"]
[Black "thisjuan"]
[Result "1-0"]
[Board "164"]
[TimeControl "180+1"]
[WhiteFideId "13429990"]
[WhiteElo "1537"]
[BlackElo "2250"]
[WhiteTeam "AZE"]
[WhiteClock "0:00:48"]
[BlackClock "0:00:23"]

1. d4 {[%clk 0:03:00]}  Nf6 {[%clk 0:02:59]} 2. e3 {[%clk 0:03:00]}  c5 {[%clk 0:02:56]} 3. c3 {[%clk 0:02:57]}  g6 {[%clk 0:02:54]} 4. f4 {[%clk 0:02:51]}  Bg7 {[%clk 0:02:54]} 5. Bd3 {[%clk 0:02:51]}  d6 {[%clk 0:02:53]} 6. Nf3 {[%clk 0:02:49]}  O-O {[%clk 0:02:52]} 7. O-O {[%clk 0:02:49]}  b6 {[%clk 0:02:52]} 8. Nbd2 {[%clk 0:02:49]}  Bb7 {[%clk 0:02:53]} 9. Qe2 {[%clk 0:02:48]}  Nbd7 {[%clk 0:02:48]} 10. b3 {[%clk 0:02:44]}  Qc7 {[%clk 0:02:46]} 11. Bb2 {[%clk 0:02:45]}  e5 {[%clk 0:02:41]} 12. e4 {[%clk 0:02:22]}  Rae8 {[%clk 0:02:33]} 13. fxe5 {[%clk 0:02:21]}  dxe5 {[%clk 0:02:31]} 14. d5 {[%clk 0:02:21]}  Nxd5 {[%clk 0:01:45]} 15. exd5 {[%clk 0:02:16]}  e4 {[%clk 0:01:46]} 16. Bxe4 {[%clk 0:02:06]}  f5 {[%clk 0:01:44]} 17. Qc4 {[%clk 0:02:05]}  Kh8 {[%clk 0:01:36]} 18. d6 {[%clk 0:01:55]}  Rxe4 {[%clk 0:01:21]} 19. dxc7 {[%clk 0:01:50]}  Rxc4 {[%clk 0:01:21]} 20. Nxc4 {[%clk 0:01:50]}  Ba6 {[%clk 0:01:16]} 21. Nd6 {[%clk 0:01:47]}  Ne5 {[%clk 0:01:04]} 22. Nxe5 {[%clk 0:01:46]}  Bxe5 {[%clk 0:01:04]} 23. Rfd1 {[%clk 0:01:44]}  f4 {[%clk 0:00:57]} 24. Nf7+ {[%clk 0:01:38]}  Rxf7 {[%clk 0:00:55]} 25. Rd8+ {[%clk 0:01:37]}  Kg7 {[%clk 0:00:56]} 26. c8=Q {[%clk 0:01:37]}  Bxc8 {[%clk 0:00:54]} 27. Rxc8 {[%clk 0:01:38]}  f3 {[%clk 0:00:54]} 28. gxf3 {[%clk 0:01:32]}  Rxf3 {[%clk 0:00:54]} 29. Rf1 {[%clk 0:01:28]}  Rd3 {[%clk 0:00:54]} 30. Re8 {[%clk 0:01:23]}  Bd6 {[%clk 0:00:47]} 31. c4+ {[%clk 0:01:22]}  Kh6 {[%clk 0:00:46]} 32. Bc1+ {[%clk 0:01:19]}  Kh5 {[%clk 0:00:45]} 33. Re3 {[%clk 0:01:14]}  Rd4 {[%clk 0:00:36]} 34. Rh3+ {[%clk 0:01:09]}  Kg4 {[%clk 0:00:36]} 35. Rxh7 {[%clk 0:01:05]}  g5 {[%clk 0:00:36]} 36. Rg7 {[%clk 0:01:01]}  Kh3 {[%clk 0:00:32]} 37. Rxg5 {[%clk 0:00:53]}  Bxh2+ {[%clk 0:00:30]} 38. Kh1 {[%clk 0:00:53]}  Rh4 {[%clk 0:00:25]} 39. Rf3+ {[%clk 0:00:48]}  Bg3 {[%clk 0:00:23]} 40. Rfxg3# {[%clk 0:00:48]} 1-0

[Event "November 21 Early 2023"]
[Site "https://www.chess.com"]
[Date "2023.11.21"]
[Round "7"]
[White "pinguino120"]
[Black "Bogaudinov, Rushan"]
[Result "0-1"]
[Board "165"]
[TimeControl "180+1"]
[BlackFideId "4129288"]
[WhiteElo "2240"]
[BlackElo "1908"]
[BlackTeam "RUS"]
[WhiteClock "0:00:22"]
[BlackClock "0:00:45"]

1. Nf3 {[%clk 0:03:00]}  b5 {[%clk 0:02:57]} 2. b3 {[%clk 0:02:57]}  Bb7 {[%clk 0:02:57]} 3. Bb2 {[%clk 0:02:57]}  e6 {[%clk 0:02:56]} 4. e3 {[%clk 0:02:57]}  a6 {[%clk 0:02:55]} 5. Be2 {[%clk 0:02:56]}  Nf6 {[%clk 0:02:55]} 6. O-O {[%clk 0:02:56]}  Be7 {[%clk 0:02:55]} 7. c4 {[%clk 0:02:56]}  bxc4 {[%clk 0:02:53]} 8. bxc4 {[%clk 0:02:57]}  c5 {[%clk 0:02:51]} 9. d4 {[%clk 0:02:56]}  O-O {[%clk 0:02:48]} 10. Nc3 {[%clk 0:02:51]}  cxd4 {[%clk 0:02:40]} 11. exd4 {[%clk 0:02:50]}  d5 {[%clk 0:02:34]} 12. Ne5 {[%clk 0:02:20]}  dxc4 {[%clk 0:02:32]} 13. Bxc4 {[%clk 0:02:12]}  Nbd7 {[%clk 0:02:26]} 14. Re1 {[%clk 0:02:07]}  Rb8 {[%clk 0:02:20]} 15. Bc1 {[%clk 0:01:59]}  Nb6 {[%clk 0:02:19]} 16. Bb3 {[%clk 0:01:56]}  Qc7 {[%clk 0:02:08]} 17. Qd3 {[%clk 0:01:51]}  Rfd8 {[%clk 0:02:01]} 18. Bf4 {[%clk 0:01:49]}  Bd6 {[%clk 0:01:47]} 19. Rac1 {[%clk 0:01:41]}  Qe7 {[%clk 0:01:45]} 20. Qh3 {[%clk 0:01:28]}  Ba3 {[%clk 0:01:37]} 21. Rcd1 {[%clk 0:01:20]}  Rbc8 {[%clk 0:01:34]} 22. Nxf7 {[%clk 0:01:19]}  Nbd5 {[%clk 0:01:24]} 23. Nxd5 {[%clk 0:01:16]}  Rxd5 {[%clk 0:01:19]} 24. Bxd5 {[%clk 0:01:11]}  Nxd5 {[%clk 0:01:14]} 25. Ng5 {[%clk 0:01:05]}  h6 {[%clk 0:01:12]} 26. Rxe6 {[%clk 0:01:04]}  Nxf4 {[%clk 0:01:07]} 27. Rxe7 {[%clk 0:01:02]}  Nxh3+ {[%clk 0:01:07]} 28. Nxh3 {[%clk 0:00:57]}  Bxe7 {[%clk 0:01:06]} 29. Nf4 {[%clk 0:00:44]}  Kf7 {[%clk 0:01:03]} 30. d5 {[%clk 0:00:40]}  g5 {[%clk 0:01:03]} 31. Nd3 {[%clk 0:00:35]}  Bxd5 {[%clk 0:00:58]} 32. Ne5+ {[%clk 0:00:34]}  Ke6 {[%clk 0:00:58]} 33. Ng6 {[%clk 0:00:34]}  Bb4 {[%clk 0:00:48]} 34. Rb1 {[%clk 0:00:31]}  a5 {[%clk 0:00:47]} 35. h4 {[%clk 0:00:22]}  Be4 {[%clk 0:00:45]} 0-1

[Event "November 21 Early 2023"]
[Site "https://www.chess.com"]
[Date "2023.11.21"]
[Round "7"]
[White "Rosenberg, Evan S"]
[Black "Dodaro, Mattia"]
[Result "1-0"]
[Board "166"]
[TimeControl "180+1"]
[WhiteFideId "2019299"]
[BlackFideId "28583400"]
[WhiteElo "2428"]
[BlackElo "2236"]
[WhiteTeam "USA"]
[BlackTeam "ITA"]
[WhiteClock "0:01:03"]
[BlackClock "0:01:54"]

1. d4 {[%clk 0:03:00]}  c5 {[%clk 0:02:53]} 2. d5 {[%clk 0:02:59]}  e5 {[%clk 0:02:53]} 3. e4 {[%clk 0:02:51]}  d6 {[%clk 0:02:53]} 4. Nc3 {[%clk 0:02:50]}  g6 {[%clk 0:02:52]} 5. g3 {[%clk 0:02:47]}  Bg7 {[%clk 0:02:53]} 6. h4 {[%clk 0:02:47]}  h6 {[%clk 0:02:52]} 7. Bh3 {[%clk 0:02:45]}  Ne7 {[%clk 0:02:41]} 8. Bxc8 {[%clk 0:02:41]}  Qxc8 {[%clk 0:02:42]} 9. Kf1 {[%clk 0:02:29]}  O-O {[%clk 0:02:41]} 10. Kg2 {[%clk 0:02:29]}  f5 {[%clk 0:02:38]} 11. exf5 {[%clk 0:02:27]}  Nxf5 {[%clk 0:02:28]} 12. Ne4 {[%clk 0:02:12]}  Qd8 {[%clk 0:02:20]} 13. c3 {[%clk 0:02:07]}  b5 {[%clk 0:02:15]} 14. a4 {[%clk 0:02:06]}  b4 {[%clk 0:02:12]} 15. a5 {[%clk 0:02:06]}  Na6 {[%clk 0:02:11]} 16. Qd3 {[%clk 0:01:39]}  Nc7 {[%clk 0:02:07]} 17. Bd2 {[%clk 0:01:26]}  bxc3 {[%clk 0:02:05]} 18. bxc3 {[%clk 0:01:13]}  Kh7 {[%clk 0:02:06]} 19. h5 {[%clk 0:01:09]}  g5 {[%clk 0:02:05]} 20. g4 {[%clk 0:01:10]}  Ne7 {[%clk 0:01:54]} 21. Nf6+ {[%clk 0:01:03]} 1-0

[Event "November 21 Early 2023"]
[Site "https://www.chess.com"]
[Date "2023.11.21"]
[Round "7"]
[White "Osmonbekov, Talaibek"]
[Black "Rios Escobar, Adan"]
[Result "0-1"]
[Board "168"]
[TimeControl "180+1"]
[WhiteFideId "2017253"]
[BlackFideId "3403645"]
[WhiteElo "2135"]
[BlackElo "2422"]
[WhiteTeam "USA"]
[BlackTeam "CHI"]
[WhiteClock "0:01:28"]
[BlackClock "0:01:25"]

1. d4 {[%clk 0:03:00]}  Nf6 {[%clk 0:02:55]} 2. Nc3 {[%clk 0:03:01]}  d5 {[%clk 0:02:52]} 3. Bf4 {[%clk 0:03:01]}  e6 {[%clk 0:02:52]} 4. e3 {[%clk 0:03:01]}  a6 {[%clk 0:02:48]} 5. Nf3 {[%clk 0:03:02]}  c5 {[%clk 0:02:48]} 6. Ne5 {[%clk 0:03:00]}  Be7 {[%clk 0:02:44]} 7. g4 {[%clk 0:03:00]}  h6 {[%clk 0:02:39]} 8. h4 {[%clk 0:02:53]}  Nc6 {[%clk 0:02:35]} 9. dxc5 {[%clk 0:02:22]}  Bxc5 {[%clk 0:02:16]} 10. Qf3 {[%clk 0:02:21]}  Qa5 {[%clk 0:02:11]} 11. O-O-O {[%clk 0:02:02]}  Bb4 {[%clk 0:01:36]} 12. g5 {[%clk 0:01:59]}  Bxc3 {[%clk 0:01:36]} 13. Nxc6 {[%clk 0:01:47]}  bxc6 {[%clk 0:01:29]} 14. bxc3 {[%clk 0:01:38]}  Ne4 {[%clk 0:01:28]} 15. gxh6 {[%clk 0:01:28]}  Qa3+ {[%clk 0:01:25]} 0-1

[Event "November 21 Early 2023"]
[Site "https://www.chess.com"]
[Date "2023.11.21"]
[Round "7"]
[White "PoXerStar"]
[Black "Ghosh, Chanchal Kumer"]
[Result "0-1"]
[Board "169"]
[TimeControl "180+1"]
[BlackFideId "10201858"]
[WhiteElo "2422"]
[BlackElo "2067"]
[BlackTeam "BAN"]
[WhiteClock "0:00:02"]
[BlackClock "0:01:24"]

1. d4 {[%clk 0:02:57]}  d5 {[%clk 0:02:59]} 2. c4 {[%clk 0:02:55]}  e6 {[%clk 0:03:00]} 3. Nf3 {[%clk 0:02:49]}  Nf6 {[%clk 0:03:00]} 4. Bf4 {[%clk 0:02:44]}  Bd6 {[%clk 0:03:01]} 5. Bxd6 {[%clk 0:02:29]}  Qxd6 {[%clk 0:03:00]} 6. Nc3 {[%clk 0:02:29]}  a6 {[%clk 0:02:59]} 7. e3 {[%clk 0:02:22]}  b6 {[%clk 0:02:57]} 8. cxd5 {[%clk 0:02:19]}  exd5 {[%clk 0:02:57]} 9. Bd3 {[%clk 0:02:17]}  O-O {[%clk 0:02:54]} 10. h3 {[%clk 0:02:14]}  Re8 {[%clk 0:02:52]} 11. O-O {[%clk 0:02:11]}  Nbd7 {[%clk 0:02:51]} 12. Qc2 {[%clk 0:02:01]}  h6 {[%clk 0:02:47]} 13. Rfe1 {[%clk 0:01:55]}  Bb7 {[%clk 0:02:46]} 14. Rac1 {[%clk 0:01:50]}  c5 {[%clk 0:02:41]} 15. Red1 {[%clk 0:01:46]}  c4 {[%clk 0:02:37]} 16. Bf5 {[%clk 0:01:45]}  b5 {[%clk 0:02:37]} 17. Bxd7 {[%clk 0:01:21]}  Nxd7 {[%clk 0:02:35]} 18. Ne2 {[%clk 0:01:05]}  Re7 {[%clk 0:02:17]} 19. Ng3 {[%clk 0:01:01]}  g6 {[%clk 0:02:16]} 20. h4 {[%clk 0:00:59]}  h5 {[%clk 0:02:08]} 21. Ng5 {[%clk 0:00:55]}  Nf6 {[%clk 0:02:00]} 22. e4 {[%clk 0:00:56]}  dxe4 {[%clk 0:01:59]} 23. b3 {[%clk 0:00:48]}  e3 {[%clk 0:01:55]} 24. bxc4 {[%clk 0:00:46]}  exf2+ {[%clk 0:01:48]} 25. Qxf2 {[%clk 0:00:47]}  Ng4 {[%clk 0:01:48]} 26. c5 {[%clk 0:00:44]}  Qd5 {[%clk 0:01:46]} 27. Qd2 {[%clk 0:00:37]}  Rae8 {[%clk 0:01:34]} 28. Rf1 {[%clk 0:00:12]}  Re2 {[%clk 0:01:28]} 29. Qxe2 {[%clk 0:00:03]}  Rxe2 {[%clk 0:01:24]} 30. Nh7 {[%clk 0:00:02]} 0-1

[Event "November 21 Early 2023"]
[Site "https://www.chess.com"]
[Date "2023.11.21"]
[Round "7"]
[White "Saim, Mohamed Ilias"]
[Black "Estrada Nieto, Julian"]
[Result "0-1"]
[Board "170"]
[TimeControl "180+1"]
[WhiteFideId "7900465"]
[BlackFideId "5101018"]
[WhiteElo "2063"]
[BlackElo "2161"]
[WhiteTeam "ALG"]
[BlackTeam "ESP"]
[WhiteClock "0:00:00"]
[BlackClock "0:00:27"]

1. d4 {[%clk 0:03:00]}  Nf6 {[%clk 0:03:00]} 2. c4 {[%clk 0:02:59]}  e6 {[%clk 0:03:00]} 3. Nf3 {[%clk 0:02:59]}  c5 {[%clk 0:03:00]} 4. d5 {[%clk 0:02:59]}  exd5 {[%clk 0:03:00]} 5. cxd5 {[%clk 0:03:00]}  d6 {[%clk 0:03:00]} 6. Nc3 {[%clk 0:03:00]}  g6 {[%clk 0:03:01]} 7. e4 {[%clk 0:02:59]}  Bg4 {[%clk 0:03:01]} 8. Bd3 {[%clk 0:02:53]}  Bg7 {[%clk 0:02:59]} 9. O-O {[%clk 0:02:53]}  O-O {[%clk 0:02:58]} 10. h3 {[%clk 0:02:52]}  Bxf3 {[%clk 0:02:58]} 11. Qxf3 {[%clk 0:02:53]}  Nbd7 {[%clk 0:02:54]} 12. Bf4 {[%clk 0:02:50]}  Ne8 {[%clk 0:02:54]} 13. Qe2 {[%clk 0:02:44]}  a6 {[%clk 0:02:54]} 14. a4 {[%clk 0:02:43]}  Rb8 {[%clk 0:02:53]} 15. Bg3 {[%clk 0:02:40]}  Be5 {[%clk 0:02:44]} 16. f4 {[%clk 0:02:39]}  Bd4+ {[%clk 0:02:44]} 17. Kh1 {[%clk 0:02:38]}  Qe7 {[%clk 0:02:38]} 18. Rae1 {[%clk 0:02:34]}  Nef6 {[%clk 0:02:37]} 19. e5 {[%clk 0:02:30]}  Nh5 {[%clk 0:02:32]} 20. Bh2 {[%clk 0:02:25]}  Rbe8 {[%clk 0:02:31]} 21. g4 {[%clk 0:02:08]}  Ng7 {[%clk 0:02:30]} 22. Qf3 {[%clk 0:01:41]}  dxe5 {[%clk 0:02:20]} 23. fxe5 {[%clk 0:01:35]}  Nxe5 {[%clk 0:02:19]} 24. Bxe5 {[%clk 0:01:18]}  Bxe5 {[%clk 0:02:17]} 25. Re2 {[%clk 0:01:04]}  Qh4 {[%clk 0:01:55]} 26. Rfe1 {[%clk 0:00:55]}  Bxc3 {[%clk 0:01:51]} 27. bxc3 {[%clk 0:00:51]}  Qxe1+ {[%clk 0:01:25]} 28. Rxe1 {[%clk 0:00:50]}  Rxe1+ {[%clk 0:01:25]} 29. Kg2 {[%clk 0:00:49]}  Rd8 {[%clk 0:01:24]} 30. c4 {[%clk 0:00:46]}  Ne8 {[%clk 0:01:21]} 31. Qf2 {[%clk 0:00:43]}  Rd1 {[%clk 0:01:19]} 32. Qe3 {[%clk 0:00:42]}  Nd6 {[%clk 0:01:15]} 33. Qe7 {[%clk 0:00:38]}  Re8 {[%clk 0:01:09]} 34. Qxd6 {[%clk 0:00:37]}  Rd2+ {[%clk 0:01:05]} 35. Kf1 {[%clk 0:00:33]}  Rxd3 {[%clk 0:01:01]} 36. Qxc5 {[%clk 0:00:30]}  Re4 {[%clk 0:00:50]} 37. Kf2 {[%clk 0:00:15]}  Kg7 {[%clk 0:00:37]} 38. Qc7 {[%clk 0:00:10]}  b6 {[%clk 0:00:33]} 39. Qxb6 {[%clk 0:00:09]}  Rxc4 {[%clk 0:00:32]} 40. Qxa6 {[%clk 0:00:08]}  Rcd4 {[%clk 0:00:31]} 41. d6 {[%clk 0:00:03]}  Rxd6 {[%clk 0:00:31]} 42. Qb5 {[%clk 0:00:04]}  R6d5 {[%clk 0:00:31]} 43. Qb2+ {[%clk 0:00:03]}  Kh6 {[%clk 0:00:30]} 44. Qc1+ {[%clk 0:00:03]}  g5 {[%clk 0:00:30]} 45. Qc6+ {[%clk 0:00:02]}  Rd6 {[%clk 0:00:28]} 46. Qc2 {[%clk 0:00:00]}  Rd2+ {[%clk 0:00:27]} 0-1

[Event "November 21 Early 2023"]
[Site "https://www.chess.com"]
[Date "2023.11.21"]
[Round "7"]
[White "Kovacsy, Barnabas"]
[Black "Skiadopoulos, Nikolaos"]
[Result "1-0"]
[Board "172"]
[TimeControl "180+1"]
[WhiteFideId "769290"]
[BlackFideId "4200772"]
[WhiteElo "2130"]
[BlackElo "2022"]
[WhiteTeam "HUN"]
[BlackTeam "GRE"]
[WhiteClock "0:01:07"]
[BlackClock "0:00:00"]

1. e4 {[%clk 0:03:00]}  c5 {[%clk 0:02:58]} 2. Nf3 {[%clk 0:02:59]}  Nc6 {[%clk 0:02:58]} 3. d4 {[%clk 0:03:00]}  cxd4 {[%clk 0:02:57]} 4. Nxd4 {[%clk 0:03:01]}  e5 {[%clk 0:02:56]} 5. Nb5 {[%clk 0:02:58]}  a6 {[%clk 0:02:55]} 6. Nd6+ {[%clk 0:02:58]}  Bxd6 {[%clk 0:02:55]} 7. Qxd6 {[%clk 0:02:59]}  Qf6 {[%clk 0:02:55]} 8. Qd1 {[%clk 0:02:57]}  Qg6 {[%clk 0:02:54]} 9. Be3 {[%clk 0:02:47]}  Qxe4 {[%clk 0:02:49]} 10. Nd2 {[%clk 0:02:46]}  Qg6 {[%clk 0:02:48]} 11. Bd3 {[%clk 0:02:38]}  f5 {[%clk 0:02:39]} 12. O-O {[%clk 0:02:28]}  d5 {[%clk 0:02:33]} 13. Be2 {[%clk 0:02:24]}  Nf6 {[%clk 0:02:31]} 14. f4 {[%clk 0:02:06]}  O-O {[%clk 0:02:25]} 15. Nf3 {[%clk 0:02:00]}  d4 {[%clk 0:02:04]} 16. Bf2 {[%clk 0:01:48]}  Ne4 {[%clk 0:01:43]} 17. Nxe5 {[%clk 0:01:45]}  Nxe5 {[%clk 0:01:42]} 18. fxe5 {[%clk 0:01:46]}  Nxf2 {[%clk 0:01:41]} 19. Rxf2 {[%clk 0:01:47]}  Be6 {[%clk 0:01:35]} 20. Qxd4 {[%clk 0:01:43]}  Rad8 {[%clk 0:01:34]} 21. Qf4 {[%clk 0:01:42]}  b5 {[%clk 0:01:14]} 22. a4 {[%clk 0:01:41]}  Rd5 {[%clk 0:01:04]} 23. axb5 {[%clk 0:01:37]}  axb5 {[%clk 0:01:03]} 24. c4 {[%clk 0:01:36]}  Rd7 {[%clk 0:00:37]} 25. cxb5 {[%clk 0:01:32]}  Rfd8 {[%clk 0:00:36]} 26. b6 {[%clk 0:01:30]}  Rd4 {[%clk 0:00:32]} 27. Qe3 {[%clk 0:01:24]}  f4 {[%clk 0:00:22]} 28. Rxf4 {[%clk 0:01:18]}  Rxf4 {[%clk 0:00:21]} 29. Qxf4 {[%clk 0:01:18]}  Bd5 {[%clk 0:00:14]} 30. Bf3 {[%clk 0:01:12]}  Qxb6+ {[%clk 0:00:13]} 31. Kh1 {[%clk 0:01:10]}  Qxb2 {[%clk 0:00:09]} 32. Bxd5+ {[%clk 0:01:08]}  Kh8 {[%clk 0:00:00]} 33. Rf1 {[%clk 0:01:07]} 1-0